[Event "Late-Titled-Tuesday-Blitz-October-10-2023"]
[Site "Chess.com"]
[Date "2023.10.10"]
[Round "8"]
[White "PapaieDudu"]
[Black "Grossboss19"]
[Result "1-0"]
[WhiteElo "2386"]
[BlackElo "2486"]
[TimeControl "180+1"]
[EndTime "15:22:21 PDT"]
[Termination "PapaieDudu won by resignation"]

1. e4 {[%clk 0:03:00.9]} 1... c6 {[%clk 0:02:43.2]} 2. d4 {[%clk 0:03:00.4]}
2... d5 {[%clk 0:02:44.1]} 3. e5 {[%clk 0:03:01.2]} 3... c5 {[%clk 0:02:38.8]}
4. c3 {[%clk 0:03:01.5]} 4... Nc6 {[%clk 0:02:35.7]} 5. Nf3 {[%clk 0:03:01]}
5... Bg4 {[%clk 0:02:28.6]} 6. Be3 {[%clk 0:02:58]} 6... e6 {[%clk 0:02:27.9]}
7. Nbd2 {[%clk 0:02:56.3]} 7... Nh6 {[%clk 0:02:20.6]} 8. h3 {[%clk 0:02:54.1]}
8... Bxf3 {[%clk 0:02:18.8]} 9. Nxf3 {[%clk 0:02:51.2]} 9... Nf5 {[%clk
0:02:18.4]} 10. Bg5 {[%clk 0:02:45.5]} 10... Qb6 {[%clk 0:02:17.4]} 11. Be2
{[%clk 0:02:38.6]} 11... cxd4 {[%clk 0:02:11.1]} 12. O-O {[%clk 0:02:38.5]}
12... dxc3 {[%clk 0:02:07.9]} 13. bxc3 {[%clk 0:02:38.7]} 13... h6 {[%clk
0:02:08.4]} 14. Rb1 {[%clk 0:02:33]} 14... Qc7 {[%clk 0:02:08.3]} 15. Bf4 {[%clk
0:02:33.3]} 15... g5 {[%clk 0:02:04.2]} 16. Bh2 {[%clk 0:02:31.3]} 16... Bg7
{[%clk 0:02:04.8]} 17. c4 {[%clk 0:02:16.5]} 17... d4 {[%clk 0:01:50.5]} 18. g4
{[%clk 0:02:15.8]} 18... Nfe7 {[%clk 0:01:36.2]} 19. Nxd4 {[%clk 0:02:13.8]}
19... Nxd4 {[%clk 0:01:36]} 20. Qxd4 {[%clk 0:02:09.2]} 20... Nc6 {[%clk
0:01:36.9]} 21. Qd6 {[%clk 0:01:52.9]} 21... Qxd6 {[%clk 0:01:23.2]} 22. exd6
{[%clk 0:01:53.1]} 22... O-O-O {[%clk 0:01:22.5]} 23. Bf3 {[%clk 0:01:42.6]}
23... e5 {[%clk 0:01:08]} 24. Rfd1 {[%clk 0:01:42.5]} 24... Rhe8 {[%clk
0:00:57.2]} 25. Be4 {[%clk 0:01:37.8]} 25... Nd4 {[%clk 0:00:41.7]} 26. Bxb7+
{[%clk 0:01:01.2]} 26... Kd7 {[%clk 0:00:40.7]} 27. c5 {[%clk 0:01:00.4]} 27...
Rb8 {[%clk 0:00:27.4]} 28. Rxd4 {[%clk 0:00:51.3]} 28... exd4 {[%clk 0:00:20.9]}
29. c6+ {[%clk 0:00:51]} 29... Ke6 {[%clk 0:00:20.5]} 30. Re1+ {[%clk
0:00:49.2]} 30... Kf6 {[%clk 0:00:18.1]} 31. Rxe8 {[%clk 0:00:47.5]} 31... Rxe8
{[%clk 0:00:19]} 32. d7 {[%clk 0:00:45.2]} 32... Re1+ {[%clk 0:00:18.8]} 33. Kg2
{[%clk 0:00:45.7]} 33... Ke7 {[%clk 0:00:18.8]} 34. c7 {[%clk 0:00:42.8]} 1-0

[Event "Late-Titled-Tuesday-Blitz-October-10-2023"]
[Site "Chess.com"]
[Date "2023.10.10"]
[Round "8"]
[White "santosalberto1987"]
[Black "hakanazeri2"]
[Result "0-1"]
[WhiteElo "2461"]
[BlackElo "2604"]
[TimeControl "180+1"]
[EndTime "15:22:28 PDT"]
[Termination "hakanazeri2 won by resignation"]

1. e4 {[%clk 0:03:00.9]} 1... c5 {[%clk 0:02:57.7]} 2. Nf3 {[%clk 0:03:00.8]}
2... d6 {[%clk 0:02:57.9]} 3. Bb5+ {[%clk 0:03:00.6]} 3... Bd7 {[%clk 0:02:58]}
4. Bxd7+ {[%clk 0:02:58.6]} 4... Qxd7 {[%clk 0:02:58.9]} 5. c4 {[%clk
0:02:58.7]} 5... Nc6 {[%clk 0:02:57.5]} 6. Nc3 {[%clk 0:02:56.7]} 6... Nf6
{[%clk 0:02:57.4]} 7. O-O {[%clk 0:02:34.9]} 7... g6 {[%clk 0:02:55.8]} 8. d4
{[%clk 0:02:34.8]} 8... cxd4 {[%clk 0:02:42.1]} 9. Nxd4 {[%clk 0:02:35.7]} 9...
Bg7 {[%clk 0:02:41.5]} 10. Be3 {[%clk 0:02:35.6]} 10... Ng4 {[%clk 0:02:36.1]}
11. Nc2 {[%clk 0:02:29]} 11... Bxc3 {[%clk 0:02:28.1]} 12. bxc3 {[%clk
0:02:27.7]} 12... Nxe3 {[%clk 0:02:26.7]} 13. Nxe3 {[%clk 0:02:28.6]} 13... Rc8
{[%clk 0:02:06.6]} 14. f4 {[%clk 0:02:26.6]} 14... Na5 {[%clk 0:02:02.4]} 15.
Qd4 {[%clk 0:02:25.3]} 15... O-O {[%clk 0:01:53.5]} 16. Qxa7 {[%clk 0:02:23.3]}
16... Nxc4 {[%clk 0:01:49.9]} 17. Rab1 {[%clk 0:02:19.9]} 17... Nxe3 {[%clk
0:00:56.5]} 18. Qxe3 {[%clk 0:02:19.6]} 18... Qc6 {[%clk 0:00:56.9]} 19. Rb3
{[%clk 0:02:17.9]} 19... Ra8 {[%clk 0:00:54.8]} 20. Rfb1 {[%clk 0:02:15.4]}
20... Rxa2 {[%clk 0:00:49.8]} 21. Rxb7 {[%clk 0:02:14.5]} 21... e6 {[%clk
0:00:48.1]} 22. R7b6 {[%clk 0:02:10.5]} 22... Qc7 {[%clk 0:00:39.4]} 23. Qd4
{[%clk 0:02:10.1]} 23... Rd8 {[%clk 0:00:34.8]} 24. h3 {[%clk 0:02:09.3]} 24...
e5 {[%clk 0:00:31.9]} 25. Qd5 {[%clk 0:02:04.6]} 25... Rc2 {[%clk 0:00:27.8]}
26. Rb7 {[%clk 0:02:02.9]} 26... Qc5+ {[%clk 0:00:26.9]} 27. Qxc5 {[%clk
0:02:02.5]} 27... dxc5 {[%clk 0:00:27.8]} 28. R1b2 {[%clk 0:01:53.4]} 28... Rc1+
{[%clk 0:00:15.8]} 29. Kh2 {[%clk 0:01:52.2]} 29... exf4 {[%clk 0:00:16.1]} 30.
Rf2 {[%clk 0:01:47.3]} 30... g5 {[%clk 0:00:15.9]} 31. h4 {[%clk 0:01:39.2]}
31... Rdd1 {[%clk 0:00:14.7]} 32. Kh3 {[%clk 0:01:37.9]} 32... h5 {[%clk
0:00:12.4]} 33. g4 {[%clk 0:01:33.7]} 33... Rh1+ {[%clk 0:00:10.3]} 34. Kg2
{[%clk 0:01:32.7]} 34... hxg4 {[%clk 0:00:09.5]} 35. Rd2 {[%clk 0:01:31]} 35...
Rcg1+ {[%clk 0:00:07.6]} 36. Kf2 {[%clk 0:01:31.3]} 36... g3+ {[%clk 0:00:03.1]}
37. Kf3 {[%clk 0:01:30.5]} 37... Rxh4 {[%clk 0:00:02.9]} 38. Rd8+ {[%clk
0:01:27.2]} 38... Kg7 {[%clk 0:00:02.9]} 39. Rdd7 {[%clk 0:01:28.1]} 39... Rf1+
{[%clk 0:00:03.5]} 40. Ke2 {[%clk 0:01:27]} 40... f3+ {[%clk 0:00:02.4]} 41. Ke3
{[%clk 0:01:25.6]} 41... g2 {[%clk 0:00:02.6]} 42. Rxf7+ {[%clk 0:01:25.1]}
42... Kg6 {[%clk 0:00:02.9]} 43. Rg7+ {[%clk 0:01:25.4]} 43... Kh5 {[%clk
0:00:03.5]} 0-1

[Event "Late-Titled-Tuesday-Blitz-October-10-2023"]
[Site "Chess.com"]
[Date "2023.10.10"]
[Round "8"]
[White "nihalsarin"]
[Black "GMBenjaminBok"]
[Result "1-0"]
[WhiteElo "3123"]
[BlackElo "3019"]
[TimeControl "180+1"]
[EndTime "15:22:35 PDT"]
[Termination "nihalsarin won by resignation"]

1. Nf3 {[%clk 0:03:00.9]} 1... d5 {[%clk 0:02:59.2]} 2. b3 {[%clk 0:02:58.1]}
2... Bf5 {[%clk 0:02:58.6]} 3. Bb2 {[%clk 0:02:58.5]} 3... e6 {[%clk 0:02:59.2]}
4. g3 {[%clk 0:02:59.3]} 4... h6 {[%clk 0:02:59.4]} 5. Bg2 {[%clk 0:03:00]} 5...
Nf6 {[%clk 0:03:00]} 6. O-O {[%clk 0:03:00.8]} 6... Be7 {[%clk 0:03:00.3]} 7. d3
{[%clk 0:03:01.6]} 7... O-O {[%clk 0:03:00.7]} 8. Nbd2 {[%clk 0:03:02.3]} 8...
Bh7 {[%clk 0:03:01.2]} 9. c4 {[%clk 0:03:02.5]} 9... c6 {[%clk 0:03:01.1]} 10.
a3 {[%clk 0:03:03.2]} 10... a5 {[%clk 0:03:00.9]} 11. Ra2 {[%clk 0:03:04]} 11...
Nbd7 {[%clk 0:03:00.6]} 12. Qa1 {[%clk 0:03:03.8]} 12... Bd6 {[%clk 0:02:59.9]}
13. Ne5 {[%clk 0:03:00.1]} 13... Nxe5 {[%clk 0:02:55.2]} 14. Bxe5 {[%clk
0:03:01]} 14... Bxe5 {[%clk 0:02:56.1]} 15. Qxe5 {[%clk 0:03:01]} 15... Nd7
{[%clk 0:02:57]} 16. Qb2 {[%clk 0:03:00.6]} 16... Qf6 {[%clk 0:02:52.8]} 17. b4
{[%clk 0:03:00.9]} 17... Qxb2 {[%clk 0:02:49.6]} 18. Rxb2 {[%clk 0:03:01]} 18...
axb4 {[%clk 0:02:49.9]} 19. axb4 {[%clk 0:03:01.9]} 19... Ra4 {[%clk 0:02:42]}
20. f4 {[%clk 0:02:52.3]} 20... Rfa8 {[%clk 0:02:39.6]} 21. Kf2 {[%clk
0:02:52.5]} 21... Kf8 {[%clk 0:02:36.4]} 22. Rc1 {[%clk 0:02:49.3]} 22... Ra2
{[%clk 0:02:32.1]} 23. Rcc2 {[%clk 0:02:44.5]} 23... Rxb2 {[%clk 0:02:30.7]} 24.
Rxb2 {[%clk 0:02:45.4]} 24... Ke7 {[%clk 0:02:29.2]} 25. b5 {[%clk 0:02:43]}
25... Kd6 {[%clk 0:02:22.3]} 26. bxc6 {[%clk 0:02:40.6]} 26... bxc6 {[%clk
0:02:23.2]} 27. Rb7 {[%clk 0:02:24.4]} 27... Ra2 {[%clk 0:02:06.6]} 28. Nb3
{[%clk 0:02:25]} 28... Rb2 {[%clk 0:01:01.5]} 29. c5+ {[%clk 0:02:01.2]} 29...
Ke7 {[%clk 0:01:00.3]} 30. Ke3 {[%clk 0:02:01.8]} 30... Kd8 {[%clk 0:00:54.2]}
31. Na5 {[%clk 0:01:47]} 31... Rxb7 {[%clk 0:00:43.5]} 32. Nxb7+ {[%clk
0:01:47.9]} 32... Ke7 {[%clk 0:00:33]} 33. Kd4 {[%clk 0:01:38.4]} 33... f6
{[%clk 0:00:31.6]} 34. Bh3 {[%clk 0:01:37.3]} 34... e5+ {[%clk 0:00:27.8]} 35.
fxe5 {[%clk 0:01:38.2]} 35... fxe5+ {[%clk 0:00:28.7]} 36. Kc3 {[%clk 0:01:39]}
36... Bg8 {[%clk 0:00:26.8]} 37. Kb4 {[%clk 0:01:37.5]} 37... Be6 {[%clk
0:00:26.2]} 38. Bxe6 {[%clk 0:01:37.2]} 38... Kxe6 {[%clk 0:00:26.6]} 39. Nd8+
{[%clk 0:01:37.9]} 39... Kf5 {[%clk 0:00:25]} 40. Nxc6 {[%clk 0:01:38.6]} 40...
Nf6 {[%clk 0:00:15.5]} 41. h3 {[%clk 0:01:34.5]} 41... g5 {[%clk 0:00:15.5]} 42.
Nd8 {[%clk 0:01:28]} 42... g4 {[%clk 0:00:10.2]} 43. c6 {[%clk 0:01:26.9]} 43...
Ne8 {[%clk 0:00:06.2]} 44. h4 {[%clk 0:01:23.7]} 44... Kf6 {[%clk 0:00:06.1]}
45. Kc5 {[%clk 0:01:23.2]} 45... Ke7 {[%clk 0:00:06.3]} 46. Nb7 {[%clk
0:01:22.7]} 46... Nc7 {[%clk 0:00:06.7]} 47. Nd6 {[%clk 0:01:18.8]} 47... Ke6
{[%clk 0:00:04.2]} 48. Nb5 {[%clk 0:01:17.8]} 48... Ne8 {[%clk 0:00:04.4]} 49.
Kb6 {[%clk 0:01:16.8]} 49... d4 {[%clk 0:00:04]} 50. Nc7+ {[%clk 0:01:16.8]} 1-0

[Event "Late-Titled-Tuesday-Blitz-October-10-2023"]
[Site "Chess.com"]
[Date "2023.10.10"]
[Round "8"]
[White "Oleksandr_Bortnyk"]
[Black "kleinebeer98"]
[Result "1-0"]
[WhiteElo "3037"]
[BlackElo "2856"]
[TimeControl "180+1"]
[EndTime "15:22:40 PDT"]
[Termination "Oleksandr_Bortnyk won by resignation"]

1. e4 {[%clk 0:02:54.3]} 1... e5 {[%clk 0:02:58.9]} 2. Bc4 {[%clk 0:02:50.8]}
2... Nf6 {[%clk 0:02:59.1]} 3. d3 {[%clk 0:02:51]} 3... c6 {[%clk 0:02:59.7]} 4.
Nf3 {[%clk 0:02:51.1]} 4... d5 {[%clk 0:02:59.7]} 5. Bb3 {[%clk 0:02:51.7]} 5...
a5 {[%clk 0:03:00.3]} 6. a3 {[%clk 0:02:50.8]} 6... a4 {[%clk 0:02:59.8]} 7. Ba2
{[%clk 0:02:51.4]} 7... Bd6 {[%clk 0:03:00.1]} 8. Nc3 {[%clk 0:02:51.6]} 8...
Be6 {[%clk 0:03:00.1]} 9. Ng5 {[%clk 0:02:51.4]} 9... O-O {[%clk 0:02:59.5]} 10.
Nxe6 {[%clk 0:02:51.9]} 10... fxe6 {[%clk 0:03:00.4]} 11. O-O {[%clk 0:02:52.4]}
11... Nbd7 {[%clk 0:02:59.3]} 12. Bd2 {[%clk 0:02:30.7]} 12... Qe8 {[%clk
0:02:59]} 13. f3 {[%clk 0:02:23]} 13... Bc5+ {[%clk 0:02:58]} 14. Kh1 {[%clk
0:02:23.5]} 14... Nh5 {[%clk 0:02:57.7]} 15. Ne2 {[%clk 0:02:15.3]} 15... Qg6
{[%clk 0:02:55.5]} 16. Qe1 {[%clk 0:02:10.2]} 16... Rf7 {[%clk 0:02:46.8]} 17.
Qh4 {[%clk 0:02:08.9]} 17... Be7 {[%clk 0:02:47]} 18. Qh3 {[%clk 0:02:03]} 18...
Raf8 {[%clk 0:02:46.5]} 19. exd5 {[%clk 0:01:59.4]} 19... cxd5 {[%clk
0:02:42.5]} 20. Rae1 {[%clk 0:01:52.4]} 20... Bd6 {[%clk 0:02:21.6]} 21. Nd4
{[%clk 0:01:27.8]} 21... exd4 {[%clk 0:02:04.1]} 22. Rxe6 {[%clk 0:01:28.7]}
22... Rf6 {[%clk 0:02:03.9]} 23. Rxf6 {[%clk 0:01:09.5]} 23... Rxf6 {[%clk
0:00:59.1]} 24. Bxd5+ {[%clk 0:00:56.7]} 24... Kh8 {[%clk 0:00:51.8]} 25. Qxd7
{[%clk 0:00:57.6]} 25... Ng3+ {[%clk 0:00:52]} 26. hxg3 {[%clk 0:00:47.7]} 26...
Qh5+ {[%clk 0:00:47.8]} 27. Kg1 {[%clk 0:00:44.6]} 27... Qxd5 {[%clk 0:00:47.8]}
28. Re1 {[%clk 0:00:34.6]} 28... h6 {[%clk 0:00:46.7]} 29. Re7 {[%clk 0:00:31]}
29... Rg6 {[%clk 0:00:42.8]} 30. Bf4 {[%clk 0:00:25.9]} 30... h5 {[%clk
0:00:13.2]} 31. Bxd6 {[%clk 0:00:20.2]} 31... Rxd6 {[%clk 0:00:14.1]} 32. Qe8+
{[%clk 0:00:20]} 32... Kh7 {[%clk 0:00:14.5]} 33. Re5 {[%clk 0:00:20.5]} 1-0

[Event "Late-Titled-Tuesday-Blitz-October-10-2023"]
[Site "Chess.com"]
[Date "2023.10.10"]
[Round "8"]
[White "MathiasWomacka"]
[Black "WDCH"]
[Result "0-1"]
[WhiteElo "2527"]
[BlackElo "2726"]
[TimeControl "180+1"]
[EndTime "15:22:41 PDT"]
[Termination "WDCH won by resignation"]

1. e4 {[%clk 0:03:00.9]} 1... c5 {[%clk 0:02:59.9]} 2. Nf3 {[%clk 0:03:00.5]}
2... d6 {[%clk 0:03:00.3]} 3. d4 {[%clk 0:03:00.9]} 3... Nf6 {[%clk 0:03:00.8]}
4. Nc3 {[%clk 0:02:59.9]} 4... cxd4 {[%clk 0:02:59.9]} 5. Nxd4 {[%clk
0:03:00.8]} 5... a6 {[%clk 0:03:00.6]} 6. Be2 {[%clk 0:03:00.1]} 6... e5 {[%clk
0:03:00.6]} 7. Nb3 {[%clk 0:03:00.6]} 7... Be7 {[%clk 0:03:01.3]} 8. O-O {[%clk
0:03:00.1]} 8... O-O {[%clk 0:03:01.9]} 9. Kh1 {[%clk 0:02:59.9]} 9... b6 {[%clk
0:03:01.4]} 10. Be3 {[%clk 0:02:55.3]} 10... Bb7 {[%clk 0:03:01.7]} 11. f3
{[%clk 0:02:55.4]} 11... Nbd7 {[%clk 0:03:02]} 12. a4 {[%clk 0:02:54.2]} 12...
Rc8 {[%clk 0:03:01.9]} 13. Rf2 {[%clk 0:02:51.6]} 13... Rc7 {[%clk 0:03:02.3]}
14. Bf1 {[%clk 0:02:51.5]} 14... Qa8 {[%clk 0:03:02.6]} 15. Rd2 {[%clk
0:02:50.8]} 15... Rfc8 {[%clk 0:03:02.8]} 16. Nc1 {[%clk 0:02:39.4]} 16... Rxc3
{[%clk 0:02:52.1]} 17. bxc3 {[%clk 0:02:40.3]} 17... Rxc3 {[%clk 0:02:52.3]} 18.
Rd3 {[%clk 0:02:22.2]} 18... Rc8 {[%clk 0:02:31.9]} 19. c4 {[%clk 0:02:19.4]}
19... Nc5 {[%clk 0:01:52]} 20. Rd2 {[%clk 0:02:18.9]} 20... Bc6 {[%clk
0:01:45.9]} 21. Nd3 {[%clk 0:02:12.5]} 21... Qb7 {[%clk 0:01:45.3]} 22. Nb4
{[%clk 0:02:10.5]} 22... h6 {[%clk 0:01:40.5]} 23. Nd5 {[%clk 0:02:00.2]} 23...
Nxd5 {[%clk 0:01:36.6]} 24. cxd5 {[%clk 0:02:01.1]} 24... Bd7 {[%clk 0:01:36.7]}
25. Rb2 {[%clk 0:01:55.5]} 25... Qc7 {[%clk 0:01:35.3]} 26. Bxc5 {[%clk
0:01:36.4]} 26... Qxc5 {[%clk 0:01:34.2]} 27. Bxa6 {[%clk 0:01:36.9]} 27... Rc7
{[%clk 0:01:25.2]} 28. Bb5 {[%clk 0:01:37.4]} 28... Bc8 {[%clk 0:01:23.4]} 29.
Bc6 {[%clk 0:01:36.9]} 29... Bg5 {[%clk 0:01:21.5]} 30. Rb5 {[%clk 0:01:30.6]}
30... Qc3 {[%clk 0:01:17.7]} 31. Rxb6 {[%clk 0:01:28.7]} 31... f5 {[%clk
0:01:16.8]} 32. Rb8 {[%clk 0:01:24.7]} 32... fxe4 {[%clk 0:01:11.1]} 33. fxe4
{[%clk 0:01:23.8]} 33... Kh7 {[%clk 0:01:11.6]} 34. Qf1 {[%clk 0:01:19.5]} 34...
Bf4 {[%clk 0:00:55]} 35. Ra2 {[%clk 0:01:01.5]} 35... Qd4 {[%clk 0:00:40.3]} 36.
Qf3 {[%clk 0:00:38.5]} 36... Qc4 {[%clk 0:00:40.1]} 37. Rf2 {[%clk 0:00:37.2]}
37... Bg4 {[%clk 0:00:34.7]} 38. Qa3 {[%clk 0:00:15.6]} 38... Qxe4 {[%clk
0:00:34.8]} 39. h3 {[%clk 0:00:14]} 39... Qe1+ {[%clk 0:00:32.5]} 0-1

[Event "Late-Titled-Tuesday-Blitz-October-10-2023"]
[Site "Chess.com"]
[Date "2023.10.10"]
[Round "8"]
[White "maurovargas01"]
[Black "blueryder"]
[Result "0-1"]
[WhiteElo "1897"]
[BlackElo "2180"]
[TimeControl "180+1"]
[EndTime "15:22:41 PDT"]
[Termination "blueryder won on time"]

1. e4 {[%clk 0:02:58.8]} 1... e5 {[%clk 0:02:58.6]} 2. Nf3 {[%clk 0:02:58.5]}
2... d5 {[%clk 0:02:57.8]} 3. exd5 {[%clk 0:02:57.5]} 3... Bd6 {[%clk
0:02:57.7]} 4. Nc3 {[%clk 0:02:56.6]} 4... Nf6 {[%clk 0:02:57.7]} 5. Bc4 {[%clk
0:02:56.3]} 5... e4 {[%clk 0:02:51.9]} 6. Nd4 {[%clk 0:02:52.2]} 6... O-O {[%clk
0:02:48.1]} 7. h3 {[%clk 0:02:48.8]} 7... a6 {[%clk 0:02:46.7]} 8. O-O {[%clk
0:02:45]} 8... Qe7 {[%clk 0:02:46.6]} 9. Re1 {[%clk 0:02:43.2]} 9... Qe5 {[%clk
0:02:46.3]} 10. Nde2 {[%clk 0:02:26.8]} 10... Qh2+ {[%clk 0:02:41.1]} 11. Kf1
{[%clk 0:02:26.6]} 11... Nbd7 {[%clk 0:02:17.8]} 12. Ng1 {[%clk 0:02:25.8]}
12... Ne5 {[%clk 0:02:16.4]} 13. Bb3 {[%clk 0:02:19.7]} 13... Ng6 {[%clk
0:02:10.1]} 14. Nxe4 {[%clk 0:02:17.7]} 14... Nxe4 {[%clk 0:01:42.9]} 15. Rxe4
{[%clk 0:02:15.6]} 15... Bf5 {[%clk 0:01:40.4]} 16. Re3 {[%clk 0:02:00.5]} 16...
Bf4 {[%clk 0:01:13.5]} 17. d4 {[%clk 0:01:58.3]} 17... Bxe3 {[%clk 0:01:04.9]}
18. Bxe3 {[%clk 0:01:59.1]} 18... Nh4 {[%clk 0:01:00.8]} 19. g4 {[%clk
0:01:10.2]} 19... Qg2+ {[%clk 0:00:55.3]} 20. Ke2 {[%clk 0:01:09.9]} 20... Be4
{[%clk 0:00:49.5]} 21. Qf1 {[%clk 0:01:07.2]} 21... Qh2 {[%clk 0:00:42.3]} 22.
Kd2 {[%clk 0:01:03.2]} 22... Ng2 {[%clk 0:00:40.9]} 23. Re1 {[%clk 0:00:58.3]}
23... Nxe3 {[%clk 0:00:40.2]} 24. Rxe3 {[%clk 0:00:51.6]} 24... Qf4 {[%clk
0:00:39.6]} 25. Kd1 {[%clk 0:00:43]} 25... Bg6 {[%clk 0:00:39.2]} 26. Qe1 {[%clk
0:00:34.2]} 26... Qxd4+ {[%clk 0:00:38.8]} 27. Rd3 {[%clk 0:00:29.3]} 27... Qxb2
{[%clk 0:00:38.8]} 28. Kd2 {[%clk 0:00:23.3]} 28... Rfe8 {[%clk 0:00:38.4]} 29.
Re3 {[%clk 0:00:20.2]} 29... Red8 {[%clk 0:00:37.6]} 30. Nf3 {[%clk 0:00:17.2]}
30... c6 {[%clk 0:00:36.4]} 31. Ke2 {[%clk 0:00:07]} 31... cxd5 {[%clk
0:00:34.8]} 32. Kf1 {[%clk 0:00:07]} 32... d4 {[%clk 0:00:32]} 0-1

[Event "Late-Titled-Tuesday-Blitz-October-10-2023"]
[Site "Chess.com"]
[Date "2023.10.10"]
[Round "8"]
[White "iturrizaga"]
[Black "josiwales"]
[Result "1-0"]
[WhiteElo "3014"]
[BlackElo "2777"]
[TimeControl "180+1"]
[EndTime "15:22:44 PDT"]
[Termination "iturrizaga won by resignation"]

1. c4 {[%clk 0:03:00.9]} 1... c5 {[%clk 0:02:51.4]} 2. Nf3 {[%clk 0:03:00.6]}
2... g6 {[%clk 0:02:48]} 3. d4 {[%clk 0:02:59.7]} 3... cxd4 {[%clk 0:02:48.9]}
4. Nxd4 {[%clk 0:03:00.3]} 4... Nc6 {[%clk 0:02:46.9]} 5. e4 {[%clk 0:03:00.9]}
5... Nf6 {[%clk 0:02:46.6]} 6. Nc3 {[%clk 0:03:00.5]} 6... d6 {[%clk 0:02:47.3]}
7. Be2 {[%clk 0:02:58.6]} 7... Nxd4 {[%clk 0:02:48]} 8. Qxd4 {[%clk 0:02:58.7]}
8... Bg7 {[%clk 0:02:48.9]} 9. O-O {[%clk 0:02:54.6]} 9... O-O {[%clk
0:02:49.5]} 10. Qd3 {[%clk 0:02:53.6]} 10... Be6 {[%clk 0:02:45.6]} 11. Be3
{[%clk 0:02:34.6]} 11... Qa5 {[%clk 0:02:41.1]} 12. Bd4 {[%clk 0:02:24.4]} 12...
Rfc8 {[%clk 0:02:37.4]} 13. b3 {[%clk 0:02:24.6]} 13... a6 {[%clk 0:02:29.7]}
14. a4 {[%clk 0:02:23.5]} 14... Nd7 {[%clk 0:02:24.5]} 15. Bxg7 {[%clk
0:02:21.5]} 15... Kxg7 {[%clk 0:02:25.4]} 16. Rab1 {[%clk 0:02:11.9]} 16... Qc5
{[%clk 0:02:05.6]} 17. Kh1 {[%clk 0:02:10.9]} 17... Ne5 {[%clk 0:01:56.1]} 18.
Qd2 {[%clk 0:02:10]} 18... Nc6 {[%clk 0:01:49.3]} 19. Rbd1 {[%clk 0:02:09.6]}
19... Nb4 {[%clk 0:01:40]} 20. f4 {[%clk 0:02:07.3]} 20... f6 {[%clk 0:01:27.5]}
21. Nd5 {[%clk 0:01:52.3]} 21... Bxd5 {[%clk 0:01:25.4]} 22. exd5 {[%clk
0:01:51.1]} 22... b5 {[%clk 0:01:22.4]} 23. cxb5 {[%clk 0:01:48.7]} 23... axb5
{[%clk 0:01:16.6]} 24. Bxb5 {[%clk 0:01:49.6]} 24... Qc3 {[%clk 0:01:11.1]} 25.
Qe2 {[%clk 0:01:43.5]} 25... Ra7 {[%clk 0:01:04.1]} 26. Rf3 {[%clk 0:01:42.6]}
26... Qc5 {[%clk 0:00:58.6]} 27. Bc4 {[%clk 0:01:31.7]} 27... Rac7 {[%clk
0:00:46]} 28. h4 {[%clk 0:01:27.9]} 28... Qa5 {[%clk 0:00:39]} 29. h5 {[%clk
0:01:27.7]} 29... Rb7 {[%clk 0:00:25.8]} 30. Re3 {[%clk 0:01:27.3]} 30... Rcc7
{[%clk 0:00:25.2]} 31. Re1 {[%clk 0:01:27]} 31... Nxd5 {[%clk 0:00:22]} 32. Rf3
{[%clk 0:01:15.8]} 32... Nb6 {[%clk 0:00:18.9]} 33. Bb5 {[%clk 0:01:15]} 33...
Nd5 {[%clk 0:00:17]} 34. Qe6 {[%clk 0:00:57.5]} 34... Rc2 {[%clk 0:00:08.4]} 35.
hxg6 {[%clk 0:00:35.4]} 35... hxg6 {[%clk 0:00:09.3]} 36. Be8 {[%clk 0:00:35.8]}
36... Kh8 {[%clk 0:00:03.9]} 37. Rh3+ {[%clk 0:00:35]} 1-0

[Event "Late-Titled-Tuesday-Blitz-October-10-2023"]
[Site "Chess.com"]
[Date "2023.10.10"]
[Round "8"]
[White "familijatop71"]
[Black "protectiago"]
[Result "0-1"]
[WhiteElo "2125"]
[BlackElo "2069"]
[TimeControl "180+1"]
[EndTime "15:22:49 PDT"]
[Termination "protectiago won on time"]

1. e4 {[%clk 0:03:00.9]} 1... e5 {[%clk 0:02:52.9]} 2. Nf3 {[%clk 0:03:00]} 2...
Nc6 {[%clk 0:02:53]} 3. Bc4 {[%clk 0:03:00.1]} 3... Bc5 {[%clk 0:02:52.9]} 4. b4
{[%clk 0:02:59.3]} 4... Bxb4 {[%clk 0:02:52.5]} 5. c3 {[%clk 0:02:59.6]} 5...
Ba5 {[%clk 0:02:51.1]} 6. d4 {[%clk 0:02:59.8]} 6... d6 {[%clk 0:02:50.3]} 7.
O-O {[%clk 0:02:52.7]} 7... Bb6 {[%clk 0:02:49.9]} 8. dxe5 {[%clk 0:02:42.9]}
8... dxe5 {[%clk 0:02:47.7]} 9. Qxd8+ {[%clk 0:02:38.2]} 9... Nxd8 {[%clk
0:02:47.5]} 10. Nxe5 {[%clk 0:02:33.2]} 10... Be6 {[%clk 0:02:47.7]} 11. Nd2
{[%clk 0:02:13.9]} 11... Nf6 {[%clk 0:02:45.8]} 12. Ba3 {[%clk 0:01:59.8]} 12...
c5 {[%clk 0:02:23.8]} 13. Bxe6 {[%clk 0:01:41.1]} 13... Nxe6 {[%clk 0:02:23.2]}
14. h3 {[%clk 0:01:38.6]} 14... O-O {[%clk 0:02:21.3]} 15. Rfe1 {[%clk
0:01:34.2]} 15... Rfd8 {[%clk 0:02:20.5]} 16. Ndc4 {[%clk 0:01:33]} 16... Bc7
{[%clk 0:02:15.2]} 17. f3 {[%clk 0:01:27.6]} 17... b5 {[%clk 0:02:15.1]} 18. Nc6
{[%clk 0:01:13.4]} 18... bxc4 {[%clk 0:02:05.3]} 19. Nxd8 {[%clk 0:01:01.8]}
19... Rxd8 {[%clk 0:02:04.6]} 20. Rad1 {[%clk 0:01:00.7]} 20... Re8 {[%clk
0:01:48.2]} 21. e5 {[%clk 0:00:53.2]} 21... Nh5 {[%clk 0:01:41.4]} 22. Rd7
{[%clk 0:00:45.5]} 22... Nhf4 {[%clk 0:01:32.2]} 23. g3 {[%clk 0:00:24.6]} 23...
Nd3 {[%clk 0:01:28.3]} 24. Rb1 {[%clk 0:00:17.8]} 24... Bxe5 {[%clk 0:01:24.5]}
25. Rbb7 {[%clk 0:00:14.8]} 25... Bxc3 {[%clk 0:01:09.7]} 26. Rxf7 {[%clk
0:00:13.2]} 26... Bd4+ {[%clk 0:01:08.1]} 27. Kg2 {[%clk 0:00:11.8]} 27... c3
{[%clk 0:01:08.1]} 28. h4 {[%clk 0:00:10.5]} 28... c2 {[%clk 0:01:07.8]} 29. h5
{[%clk 0:00:10.2]} 29... c1=Q {[%clk 0:01:05.2]} 30. Bxc1 {[%clk 0:00:10.8]}
30... Nxc1 {[%clk 0:01:05.4]} 31. g4 {[%clk 0:00:11.1]} 31... c4 {[%clk
0:01:00.2]} 32. Kg3 {[%clk 0:00:09.8]} 32... c3 {[%clk 0:01:00.2]} 33. f4 {[%clk
0:00:10]} 33... c2 {[%clk 0:00:59.8]} 34. f5 {[%clk 0:00:08.5]} 34... Ne2+
{[%clk 0:00:58.7]} 35. Kh4 {[%clk 0:00:05.6]} 35... c1=Q {[%clk 0:00:45.4]} 36.
fxe6 {[%clk 0:00:05.3]} 36... Qh1+ {[%clk 0:00:41]} 37. Kg5 {[%clk 0:00:04.9]}
37... Bf6+ {[%clk 0:00:37.5]} 0-1